Workbook

Sheet Output
A1: =Input!$A$1 -> IT Capital Expenditure
A2: Powercor
A3: Output
A4: Forecast, June $2021 '000 (no escalation)
B5: Check OK: | C5: =SUM(AH10:AH13)=0 -> TRUE
B8: Function Code | C8: Service | F8: 2021/22 | G8: 2021/22 | H8: 2021/22 | I8: 2022/23 | J8: 2022/23 | K8: 2022/23 | L8: 2023/24 | M8: 2023/24 | N8: 2023/24 | O8: 2024/25 | P8: 2024/25 | Q8: 2024/25 | R8: 2025/26 | S8: 2025/26 | T8: 2025/26 | V8: Total | AB8: Total | AD8: Total
F9: =PAL!F$9 -> Labour | G9: =PAL!G$9 -> Materials | H9: =PAL!H$9 -> Contracts | I9: =PAL!I$9 -> Labour | J9: =PAL!J$9 -> Materials | K9: =PAL!K$9 -> Contracts | L9: =PAL!L$9 -> Labour | M9: =PAL!M$9 -> Materials | N9: =PAL!N$9 -> Contracts | O9: =PAL!O$9 -> Labour | P9: =PAL!P$9 -> Materials | Q9: =PAL!Q$9 -> Contracts | R9: =PAL!R$9 -> Labour | S9: =PAL!S$9 -> Materials | T9: =PAL!T$9 -> Contracts | V9: 2021/22 | W9: 2022/23 | X9: 2023/24 | Y9: 2024/25 | Z9: 2025/26 | AD9: Labour | AE9: Materials | AF9: Contracts
B10: 200 | C10: Total SCS | F10: =PAL!F19 -> 21163.57593 | G10: =PAL!G19 -> 11428.22481 | H10: =PAL!H19 -> 7209.066626 | I10: =PAL!I19 -> 22535.70222 | J10: =PAL!J19 -> 9596.730696 | K10: =PAL!K19 -> 6975.755135 | L10: =PAL!L19 -> 15915.37264 | M10: =PAL!M19 -> 9451.198592 | N10: =PAL!N19 -> 7778.087249 | O10: =PAL!O19 -> 9945.617749 | P10: =PAL!P19 -> 10125.49852 | Q10: =PAL!Q19 -> 6481.787547 | R10: =PAL!R19 -> 8046.56924 | S10: =PAL!S19 -> 6892.585585 | T10: =PAL!T19 -> 3045.671967 | V10: =SUMIF($F$8:$T$8,V$9,$F10:$T10) -> 39800.86737 | W10: 39108.18805 | X10: 33144.65848 | Y10: 26552.90382 | Z10: 17984.82679 | AA10: =IFERROR(SUM(V10:Z10),"") -> 156591.4445 | AB10: =SUM(V10:Z10) -> 156591.4445 | AD10: =SUMIF($F$9:$T$9,AD$9,$F10:$T10) -> 77606.83778 | AE10: =SUMIF($F$9:$T$9,AE$9,$F10:$T10) -> 47494.23821 | AF10: =SUMIF($F$9:$T$9,AF$9,$F10:$T10) -> 31490.36852 | AH10: =AB10-PAL!V19 -> 0
B11: 205 | C11: Total Metering | F11: =PAL!F34 -> 350 | G11: =PAL!G34 -> 0 | H11: =PAL!H34 -> 0 | I11: =PAL!I34 -> 0 | J11: =PAL!J34 -> 0 | K11: =PAL!K34 -> 0 | L11: =PAL!L34 -> 350 | M11: =PAL!M34 -> 0 | N11: =PAL!N34 -> 0 | O11: =PAL!O34 -> 0 | P11: =PAL!P34 -> 0 | Q11: =PAL!Q34 -> 0 | R11: =PAL!R34 -> 350 | S11: =PAL!S34 -> 0 | T11: =PAL!T34 -> 0 | V11: 350 | W11: 0 | X11: 350 | Y11: 0 | Z11: 350 | AB11: =SUM(V11:Z11) -> 1050 | AD11: =AD10/SUM($AD10:$AF10) -> 0.4956007528 | AE11: =AE10/SUM($AD10:$AF10) -> 0.303300339 | AF11: =AF10/SUM($AD10:$AF10) -> 0.2010989082 | AH11: =AB11-PAL!V34 -> 0
AH12: =SUM(AD10:AF10)-SUM(V10:Z10) -> 0
C15: Revised proposal (before real escalation)
D16: 2021/22 | E16: 2022/23 | F16: 2023/24 | G16: 2024/25 | H16: 2025/26
C17: ICT | D17: =SUMPRODUCT((PAL!$F$10:$T$18)*($C17=PAL!$D$10:$D$18)*(D$16=PAL!$F$22:$T$22))/1000 -> 34.49462775 | E17: =SUMPRODUCT((PAL!$F$10:$T$18)*($C17=PAL!$D$10:$D$18)*(E$16=PAL!$F$22:$T$22))/1000 -> 35.89932636 | F17: =SUMPRODUCT((PAL!$F$10:$T$18)*($C17=PAL!$D$10:$D$18)*(F$16=PAL!$F$22:$T$22))/1000 -> 30.00386308 | G17: =SUMPRODUCT((PAL!$F$10:$T$18)*($C17=PAL!$D$10:$D$18)*(G$16=PAL!$F$22:$T$22))/1000 -> 25.67767851 | H17: =SUMPRODUCT((PAL!$F$10:$T$18)*($C17=PAL!$D$10:$D$18)*(H$16=PAL!$F$22:$T$22))/1000 -> 16.8196854 | I17: =IFERROR(SUM(D17:H17),"") -> 142.8951811
C18: DER | D18: =SUMPRODUCT((PAL!$F$10:$T$18)*($C18=PAL!$D$10:$D$18)*(D$16=PAL!$F$22:$T$22))/1000 -> 5.306239628 | E18: =SUMPRODUCT((PAL!$F$10:$T$18)*($C18=PAL!$D$10:$D$18)*(E$16=PAL!$F$22:$T$22))/1000 -> 3.208861691 | F18: =SUMPRODUCT((PAL!$F$10:$T$18)*($C18=PAL!$D$10:$D$18)*(F$16=PAL!$F$22:$T$22))/1000 -> 3.140795394 | G18: =SUMPRODUCT((PAL!$F$10:$T$18)*($C18=PAL!$D$10:$D$18)*(G$16=PAL!$F$22:$T$22))/1000 -> 0.875225305 | H18: =SUMPRODUCT((PAL!$F$10:$T$18)*($C18=PAL!$D$10:$D$18)*(H$16=PAL!$F$22:$T$22))/1000 -> 1.165141389 | I18: =IFERROR(SUM(D18:H18),"") -> 13.69626341
D21: 2021/22 | E21: 2022/23 | F21: 2023/24 | G21: 2024/25 | H21: 2025/26
C22: Recurrent | D22: =SUMPRODUCT((PAL!$F$10:$T$18)*($C22=PAL!$B$10:$B$18)*(D$16=PAL!$F$22:$T$22))/1000 -> 24.88929842 | E22: =SUMPRODUCT((PAL!$F$10:$T$18)*($C22=PAL!$B$10:$B$18)*(E$16=PAL!$F$22:$T$22))/1000 -> 22.42155092 | F22: =SUMPRODUCT((PAL!$F$10:$T$18)*($C22=PAL!$B$10:$B$18)*(F$16=PAL!$F$22:$T$22))/1000 -> 18.88952949 | G22: =SUMPRODUCT((PAL!$F$10:$T$18)*($C22=PAL!$B$10:$B$18)*(G$16=PAL!$F$22:$T$22))/1000 -> 21.28682186 | H22: =SUMPRODUCT((PAL!$F$10:$T$18)*($C22=PAL!$B$10:$B$18)*(H$16=PAL!$F$22:$T$22))/1000 -> 15.78554525 | I22: =IFERROR(SUM(D22:H22),"") -> 103.2727459
C23: Non-recurrent | D23: =SUMPRODUCT((PAL!$F$10:$T$18)*($C23=PAL!$B$10:$B$18)*(D$16=PAL!$F$22:$T$22))/1000-D18 -> 9.605329326 | E23: =SUMPRODUCT((PAL!$F$10:$T$18)*($C23=PAL!$B$10:$B$18)*(E$16=PAL!$F$22:$T$22))/1000-E18 -> 13.47777544 | F23: =SUMPRODUCT((PAL!$F$10:$T$18)*($C23=PAL!$B$10:$B$18)*(F$16=PAL!$F$22:$T$22))/1000-F18 -> 11.11433359 | G23: =SUMPRODUCT((PAL!$F$10:$T$18)*($C23=PAL!$B$10:$B$18)*(G$16=PAL!$F$22:$T$22))/1000-G18 -> 4.390856657 | H23: =SUMPRODUCT((PAL!$F$10:$T$18)*($C23=PAL!$B$10:$B$18)*(H$16=PAL!$F$22:$T$22))/1000-H18 -> 1.034140154 | I23: =IFERROR(SUM(D23:H23),"") -> 39.62243517
C24: DER | D24: =D18 -> 5.306239628 | E24: =E18 -> 3.208861691 | F24: 3.140795394 | G24: 0.875225305 | H24: 1.165141389 | I24: =IFERROR(SUM(D24:H24),"") -> 13.69626341

Sheet PAL
A1: =Input!$A$1 -> IT Capital Expenditure | H1: AER draft decision
A2: Powercor | H2: RRP change
A3: Summary
A4: Forecast, June $2021 '000 (no escalation)
A7: Standard control services
A8: IT Category | F8: 2021/22 PAL SCS | I8: 2022/23 PAL SCS | L8: 2023/24 PAL SCS | O8: 2024/25 PAL SCS | R8: 2025/26 PAL SCS | V8: 2021/22 - 2025/26 | X8: PAL SCS
A9: Description | B9: Recurrent/Non-Recurrent | C9: Category | D9: AER category | F9: Labour | G9: Materials | H9: Contracts | I9: Labour | J9: Materials | K9: Contracts | L9: Labour | M9: Materials | N9: Contracts | O9: Labour | P9: Materials | Q9: Contracts | R9: Labour | S9: Materials | T9: Contracts | X9: 2021/22 | Y9: 2022/23 | Z9: 2023/24 | AA9: 2024/25 | AB9: 2025/26
A10: Recurrent programs | B10: Recurrent | D10: ICT | F10: 10484.14471 | G10: 9268.523382 | H10: 5136.630324 | I10: 10315.11619 | J10: 7918.273166 | K10: 4188.161561 | L10: 8911.223898 | M10: 6833.8561 | N10: 3144.449495 | O10: 8292.505059 | P10: 8908.547174 | Q10: 4085.769624 | R10: 7348.905522 | S10: 5818.272714 | T10: 2618.367013 | V10: =SUM(F10:T10) -> 103272.7459 | X10: =SUMIF($F$22:$T$22,X$9,$F10:$T10) -> 24889.29842 | Y10: =SUMIF($F$22:$T$22,Y$9,$F10:$T10) -> 22421.55092 | Z10: 18889.52949 | AA10: 21286.82186 | AB10: 15785.54525
A11: Digital network | B11: Non-recurrent | C11: New or expanded capabilities | D11: DER | F11: 2176.896488 | G11: 581.1149555 | H11: 0 | I11: 2178.04501 | J11: 1030.816681 | K11: 0 | L11: 1939.353471 | M11: 1201.441923 | N11: 0 | O11: 291.6375198 | P11: 583.5877851 | Q11: 0 | R11: 511.6078521 | S11: 653.5335366 | T11: 0 | V11: =SUM(F11:T11) -> 11148.03522 | X11: 2758.011444 | Y11: 3208.861691 | Z11: 3140.795394 | AA11: 875.225305 | AB11: 1165.141389
A12: 5 Minute Settlements | B12: Non-recurrent | C12: Complying new obligations | D12: ICT | F12: 5667.548808 | G12: 112.2178903 | H12: 1409.512871 | I12: 1552.407095 | J12: 26.68165473 | K12: 0 | L12: 0 | M12: 30.33155122 | N12: 0 | O12: 0 | P12: 36.86988931 | Q12: 0 | R12: 0 | S12: 74.15044496 | T12: 0 | V12: 8909.720205 | X12: 7189.279569 | Y12: 1579.08875 | Z12: 30.33155122 | AA12: 36.86988931 | AB12: 74.15044496
A13: SAP S/4HANA | B13: Non-recurrent | C13: Maintaining existing services | D13: ICT | F13: 0 | G13: 0 | H13: 0 | I13: 1113.620553 | J13: 0 | K13: 649.3414302 | L13: 2068.152455 | M13: 779.2097162 | N13: 2584.378892 | O13: 1845.428345 | P13: 0 | Q13: 2233.73452 | R13: 0 | S13: 0 | T13: 0 | V13: 11273.86591 | X13: 0 | Y13: 1762.961983 | Z13: 5431.741063 | AA13: 4079.162864 | AB13: 0
A14: Cyber security | B14: Non-recurrent | C14: New or expanded capabilities | D14: ICT | F14: 213.8299646 | G14: 463.4700874 | H14: 452.8987409 | I14: 222.5440739 | J14: 436.2071411 | K14: 507.4246335 | L14: 240.6408653 | M14: 451.7859676 | N14: 563.0632995 | O14: 239.6776673 | P14: 498.522447 | Q14: 480.7180739 | R14: 186.0558659 | S14: 346.6288889 | T14: 427.3049545 | V14: 5730.772671 | X14: 1130.198793 | Y14: 1166.175849 | Z14: 1255.490132 | AA14: 1218.918188 | AB14: 959.9897093
A15: Customer Enablement | B15: Non-recurrent | C15: New or expanded capabilities | D15: ICT | F15: =IFERROR(Input!F10*Input!$E10,"") -> 235.0488321 | G15: =IFERROR(Input!G10*Input!$E10,"") -> 23.45703087 | H15: =IFERROR(Input!H10*Input!$E10,"") -> 0 | I15: =IFERROR(Input!I10*Input!$E10,"") -> 1023.608999 | J15: =IFERROR(Input!J10*Input!$E10,"") -> 46.91406174 | K15: =IFERROR(Input!K10*Input!$E10,"") -> 0 | L15: =IFERROR(Input!L10*Input!$E10,"") -> 97.45927185 | M15: =IFERROR(Input!M10*Input!$E10,"") -> 0 | N15: =IFERROR(Input!N10*Input!$E10,"") -> 0 | O15: =IFERROR(Input!O10*Input!$E10,"") -> 0 | P15: =IFERROR(Input!P10*Input!$E10,"") -> 0 | Q15: =IFERROR(Input!Q10*Input!$E10,"") -> 0 | R15: =IFERROR(Input!R10*Input!$E10,"") -> 0 | S15: =IFERROR(Input!S10*Input!$E10,"") -> 0 | T15: =IFERROR(Input!T10*Input!$E10,"") -> 0 | V15: 1426.488196 | X15: 258.505863 | Y15: 1070.523061 | Z15: 97.45927185 | AA15: 0 | AB15: 0
A16: Solar enablement DVMS | B16: Non-recurrent | C16: New or expanded capabilities | D16: DER | F16: 1457.334582 | G16: 1090.893603 | H16: 0 | I16: 0 | J16: 0 | K16: 0 | L16: 0 | M16: 0 | N16: 0 | O16: 0 | P16: 0 | Q16: 0 | R16: 0 | S16: 0 | T16: 0 | V16: 2548.228185 | X16: 2548.228185 | Y16: 0 | Z16: 0 | AA16: 0 | AB16: 0
A17: Intelligent engineering | B17: Non-recurrent | C17: New or expanded capabilities | D17: ICT | F17: 0 | G17: 0 | H17: 0 | I17: 533.1069359 | J17: 249.2901267 | K17: 0 | L17: 1416.09979 | M17: 345.634137 | N17: 1061.710994 | O17: 132.4489282 | P17: 289.0320309 | Q17: 0 | R17: 0 | S17: 0 | T17: 0 | V17: 4027.322943 | X17: 0 | Y17: 782.3970626 | Z17: 2823.444921 | AA17: 421.4809591 | AB17: 0
A18: Field service management solution | B18: Non-recurrent | C18: New or expanded capabilities | D18: ICT | F18: =Input!F11 -> 928.7725455 | G18: =Input!G11 -> -111.4521349 | H18: =Input!H11 -> 210.0246901 | I18: =Input!I11 -> 5597.25336 | J18: =Input!J11 -> -111.4521349 | K18: =Input!K11 -> 1630.82751 | L18: =Input!L11 -> 1242.442884 | M18: =Input!M11 -> -191.0608027 | N18: =Input!N11 -> 424.4845685 | O18: =Input!O11 -> -856.07977 | P18: =Input!P11 -> -191.0608027 | Q18: =Input!Q11 -> -318.4346712 | R18: =Input!R11 -> 0 | S18: =Input!S11 -> 0 | T18: =Input!T11 -> 0 | V18: 8254.265242 | X18: 1027.345101 | Y18: 7116.628735 | Z18: 1475.86665 | AA18: -1365.575244 | AB18: 0
A19: Total | F19: =SUM(F10:F18) -> 21163.57593 | G19: 11428.22481 | H19: 7209.066626 | I19: 22535.70222 | J19: 9596.730696 | K19: 6975.755135 | L19: 15915.37264 | M19: 9451.198592 | N19: 7778.087249 | O19: 9945.617749 | P19: 10125.49852 | Q19: 6481.787547 | R19: 8046.56924 | S19: 6892.585585 | T19: 3045.671967 | V19: =SUM(F19:T19) -> 156591.4445 | X19: 39800.86737 | Y19: 39108.18805 | Z19: 33144.65848 | AA19: 26552.90382 | AB19: 17984.82679 | AD19: =SUM(X19:AB19)-V19 -> 0
A22: SCS summary by Recurrent/non-recurrent | F22: 2021/22 | G22: 2021/22 | H22: 2021/22 | I22: 2022/23 | J22: 2022/23 | K22: 2022/23 | L22: 2023/24 | M22: 2023/24 | N22: 2023/24 | O22: 2024/25 | P22: 2024/25 | Q22: 2024/25 | R22: 2025/26 | S22: 2025/26 | T22: 2025/26 | V22: 2021/22 - 2025/26 | X22: 2021/22 | Y22: 2022/23 | Z22: 2023/24 | AA22: 2024/25 | AB22: 2025/26
A23: Recurrent | B23: Maintaining existing services | F23: =SUMIF($B$10:$B$18, $A23, F$10:F$18) -> 10484.14471 | G23: 9268.523382 | H23: 5136.630324 | I23: 10315.11619 | J23: 7918.273166 | K23: 4188.161561 | L23: 8911.223898 | M23: 6833.8561 | N23: 3144.449495 | O23: 8292.505059 | P23: 8908.547174 | Q23: 4085.769624 | R23: 7348.905522 | S23: 5818.272714 | T23: 2618.367013 | V23: =SUM(F23:T23) -> 103272.7459 | X23: =SUMIF($F$22:$T$22,X$9,$F23:$T23) -> 24889.29842 | Y23: =SUMIF($F$22:$T$22,Y$9,$F23:$T23) -> 22421.55092 | Z23: 18889.52949 | AA23: 21286.82186 | AB23: 15785.54525
A24: Non-Recurrent | B24: Maintaining existing services | F24: 10679.43122 | G24: 2159.701432 | H24: 2072.436302 | I24: 12220.58603 | J24: 1678.45753 | K24: 2787.593574 | L24: 7004.148737 | M24: 2617.342493 | N24: 4633.637754 | O24: 1653.11269 | P24: 1216.95135 | Q24: 2396.017922 | R24: 697.663718 | S24: 1074.31287 | T24: 427.3049545 | V24: =SUM(F24:T24) -> 53318.69857 | X24: =SUMIF($F$22:$T$22,X$9,$F24:$T24) -> 14911.56895 | Y24: 16686.63713 | Z24: 14255.12898 | AA24: 5266.081962 | AB24: 2199.281543
A25: Total | F25: =SUM(F23:F24) -> 21163.57593 | G25: 11428.22481 | H25: 7209.066626 | I25: 22535.70222 | J25: 9596.730696 | K25: 6975.755135 | L25: 15915.37264 | M25: 9451.198592 | N25: 7778.087249 | O25: 9945.617749 | P25: 10125.49852 | Q25: 6481.787547 | R25: 8046.56924 | S25: 6892.585585 | T25: 3045.671967 | V25: =SUM(F25:T25) -> 156591.4445 | X25: =SUMIF($F$22:$T$22,X$9,$F25:$T25) -> 39800.86737 | Y25: 39108.18805 | Z25: 33144.65848 | AA25: 26552.90382 | AB25: 17984.82679 | AD25: =SUM(F25:T25)-V25 -> 0 | AE25: =V25-Output!AB10 -> 0
A26: Check | F26: =SUM(F23:F24)-F19 -> 0 | G26: 0 | H26: 0 | I26: 0 | J26: 0 | K26: 0 | L26: 0 | M26: 0 | N26: 0 | O26: 0 | P26: 0 | Q26: 0 | R26: 0 | S26: 0 | T26: 0
A29: Metering services | V29: Total
A30: IT Category | F30: 2021/22 PAL AMI | I30: 2022/23 PAL AMI | L30: 2023/24 PAL AMI | O30: 2024/25 PAL AMI | R30: 2025/26 PAL AMI | V30: 2021/22 - 2025/26 | X30: PAL AMI
A31: Description | B31: Recurrent/Non-Recurrent | F31: Labour | G31: Materials | H31: Contracts | I31: Labour | J31: Materials | K31: Contracts | L31: Labour | M31: Materials | N31: Contracts | O31: Labour | P31: Materials | Q31: Contracts | R31: Labour | S31: Materials | T31: Contracts | X31: 2021/22 | Y31: 2022/23 | Z31: 2023/24 | AA31: 2024/25 | AB31: 2025/26
A32: UIQ upgrades | B32: Recurrent | F32: 350 | G32: 0 | H32: 0 | I32: 0 | J32: 0 | K32: 0 | L32: 350 | M32: 0 | N32: 0 | O32: 0 | P32: 0 | Q32: 0 | R32: 350 | S32: 0 | T32: 0 | V32: =SUM(F32:T32) -> 1050 | X32: =SUMIF($F$22:$T$22,X$9,$F32:$T32) -> 350 | Y32: =SUMIF($F$22:$T$22,Y$9,$F32:$T32) -> 0 | Z32: 350 | AA32: 0 | AB32: 350
X33: =SUMIF($F$22:$T$22,X$9,$F33:$T33) -> 0 | Y33: 0 | Z33: 0 | AA33: 0 | AB33: 0
A34: Total | F34: =SUM(F32:F33) -> 350 | G34: =SUM(G32:G33) -> 0 | H34: =SUM(H32:H33) -> 0 | I34: =SUM(I32:I33) -> 0 | J34: =SUM(J32:J33) -> 0 | K34: =SUM(K32:K33) -> 0 | L34: =SUM(L32:L33) -> 350 | M34: =SUM(M32:M33) -> 0 | N34: =SUM(N32:N33) -> 0 | O34: =SUM(O32:O33) -> 0 | P34: =SUM(P32:P33) -> 0 | Q34: =SUM(Q32:Q33) -> 0 | R34: =SUM(R32:R33) -> 350 | S34: =SUM(S32:S33) -> 0 | T34: =SUM(T32:T33) -> 0 | V34: =SUM(F34:T34) -> 1050 | X34: =SUMIF($F$22:$T$22,X$9,$F34:$T34) -> 350 | Y34: 0 | Z34: 350 | AA34: 0 | AB34: 350 | AD34: =SUM(F34:T34)-V34 -> 0 | AE34: =V34-Output!AB11 -> 0

Sheet Input
A1: IT Capital Expenditure
A2: Input
A3: Input
A4: Forecast, June $2021 '000 (no escalation)
B5: Check OK: | C5: =SUM(W10:W21)=0 -> TRUE
A7: Standard control services
F8: 2021/22 VPN SCS | I8: 2022/23 VPN SCS | L8: 2023/24 VPN SCS | O8: 2024/25 VPN SCS | R8: 2025/26 VPN SCS
A9: Project | B9: Recurrent/Non-Recurrent | C9: Category | D9: Business | E9: Powercor allocation | F9: Labour | G9: Materials | H9: Contracts | I9: Labour | J9: Materials | K9: Contracts | L9: Labour | M9: Materials | N9: Contracts | O9: Labour | P9: Materials | Q9: Contracts | R9: Labour | S9: Materials | T9: Contracts
A10: Customer Enablement | B10: Non-recurrent | C10: New or expanded capabilities | D10: VPN | E10: 0.7 | F10: =[1]Output_VPN!F$12 -> 335.7840459 | G10: =[1]Output_VPN!G$12 -> 33.5100441 | H10: =[1]Output_VPN!H$12 -> 0 | I10: =[1]Output_VPN!I$12 -> 1462.29857 | J10: =[1]Output_VPN!J$12 -> 67.02008819 | K10: =[1]Output_VPN!K$12 -> 0 | L10: =[1]Output_VPN!L$12 -> 139.2275312 | M10: =[1]Output_VPN!M$12 -> 0 | N10: =[1]Output_VPN!N$12 -> 0 | O10: =[1]Output_VPN!O$12 -> 0 | P10: =[1]Output_VPN!P$12 -> 0 | Q10: =[1]Output_VPN!Q$12 -> 0 | R10: =[1]Output_VPN!R$12 -> 0 | S10: =[1]Output_VPN!S$12 -> 0 | T10: =[1]Output_VPN!T$12 -> 0
A11: Field service management solution | B11: Non-recurrent | C11: New or expanded capabilities | D11: PAL | F11: =[2]Output_PAL!F$12 -> 928.7725455 | G11: =[2]Output_PAL!G$12 -> -111.4521349 | H11: =[2]Output_PAL!H$12 -> 210.0246901 | I11: =[2]Output_PAL!I$12 -> 5597.25336 | J11: =[2]Output_PAL!J$12 -> -111.4521349 | K11: =[2]Output_PAL!K$12 -> 1630.82751 | L11: =[2]Output_PAL!L$12 -> 1242.442884 | M11: =[2]Output_PAL!M$12 -> -191.0608027 | N11: =[2]Output_PAL!N$12 -> 424.4845685 | O11: =[2]Output_PAL!O$12 -> -856.07977 | P11: =[2]Output_PAL!P$12 -> -191.0608027 | Q11: =[2]Output_PAL!Q$12 -> -318.4346712 | R11: =[2]Output_PAL!R$12 -> 0 | S11: =[2]Output_PAL!S$12 -> 0 | T11: =[2]Output_PAL!T$12 -> 0
F12: =SUM(F10:F11) -> 1264.556591 | G12: -77.94209082 | H12: 210.0246901 | I12: 7059.551931 | J12: -44.43204672 | K12: 1630.82751 | L12: 1381.670415 | M12: -191.0608027 | N12: 424.4845685 | O12: -856.07977 | P12: -191.0608027 | Q12: -318.4346712 | R12: 0 | S12: 0 | T12: 0
A14: SCS summary
F15: 2021/22 VPN SCS | I15: 2022/23 VPN SCS | L15: 2023/24 VPN SCS | O15: 2024/25 VPN SCS | R15: 2025/26 VPN SCS
A16: Recurrent | F16: =SUMIF($B$10:$B$11,$A16,F$10:F$11) -> 0 | G16: 0 | H16: 0 | I16: 0 | J16: 0 | K16: 0 | L16: 0 | M16: 0 | N16: 0 | O16: 0 | P16: 0 | Q16: 0 | R16: 0 | S16: 0 | T16: 0
A17: Non-Recurrent | F17: 1264.556591 | G17: -77.94209082 | H17: 210.0246901 | I17: 7059.551931 | J17: -44.43204672 | K17: 1630.82751 | L17: 1381.670415 | M17: -191.0608027 | N17: 424.4845685 | O17: -856.07977 | P17: -191.0608027 | Q17: -318.4346712 | R17: 0 | S17: 0 | T17: 0
A18: Total | F18: =SUM(F16:F17) -> 1264.556591 | G18: -77.94209082 | H18: 210.0246901 | I18: 7059.551931 | J18: -44.43204672 | K18: 1630.82751 | L18: 1381.670415 | M18: -191.0608027 | N18: 424.4845685 | O18: -856.07977 | P18: -191.0608027 | Q18: -318.4346712 | R18: 0 | S18: 0 | T18: 0
A19: Check | F19: =SUM(F16:F17)-F12 -> 0 | G19: 0 | H19: 0 | I19: 0 | J19: 0 | K19: 0 | L19: 0 | M19: 0 | N19: 0 | O19: 0 | P19: 0 | Q19: 0 | R19: 0 | S19: 0 | T19: 0
